fUSD/lending_fUSD_20260308
["ID","MTS","AMOUNT","RATE_DAILY","PERIOD"]
[407984573,1772969438027,-500.0,0.00013698,2]
[407984574,1772969438041,-500.0,0.00013698,2]
[407984575,1772969438052,-500.0,0.00013698,2]
[407984576,1772969438062,-500.0,0.00013698,2]
[407984577,1772969438072,-500.0,0.00013698,2]
[407984578,1772969438082,-500.0,0.00013698,2]
[407984579,1772969438095,-500.0,0.00013698,2]
[407984580,1772969438105,-500.0,0.00013698,2]
[407984581,1772969438117,-500.0,0.00013698,2]
[407984582,1772969438129,-1268.40519774,0.00013743,2]
[407984583,1772969438141,-636.16,0.00013804,2]
[407984584,1772969438151,-613.48,0.0001383,2]
[407984585,1772969438161,-500.0,0.00013837,2]
[407984586,1772969438170,-250.0,0.00013923,2]
[407984587,1772969438180,-600.0,0.00013923,2]
[407984588,1772969438190,-250.0,0.00013935,2]
[407984589,1772969438204,-241.65069488,0.00013935,2]
[407984590,1772969438215,-150.53,0.00014,2]
[407984591,1772969438226,-613.48,0.00014104,2]
[407984592,1772969438238,-1000.0,0.00014121,2]
[407984593,1772969438248,-636.16,0.00014125,2]
[407984594,1772969438259,-5000.0,0.00014125,2]
[407984595,1772969438269,-410.29316939,0.00014125,2]
[407984596,1772969438280,-600.0,0.00014125,2]
[407984597,1772969438292,-600.0,0.00014125,2]
[407984598,1772969438305,-600.0,0.00014125,2]
[407984599,1772969438316,-300.0,0.00014125,2]
[407984600,1772969438327,-300.0,0.00014125,2]
[407984601,1772969438339,-300.0,0.00014125,2]
[407984602,1772969438352,-300.0,0.00014125,2]
[407984603,1772969438369,-4171.8304989,0.00014125,2]
[407984604,1772969438381,-11613.25087256,0.00014187,2]
[407984605,1772969438394,-727.9473321,0.00014235,2]
[407984606,1772969438406,-362.14,0.00014363,2]
[407984607,1772969438419,-362.14,0.00014363,2]
[407984608,1772969438434,-362.14,0.00014363,2]
[407984609,1772969438447,-362.14,0.00014363,2]
[407984610,1772969438459,-362.14,0.00014363,2]
[407984611,1772969438471,-431.68791693,0.00014363,2]
[407984612,1772969438484,-151.0,0.0001437,2]
[407984613,1772969438495,-150.53,0.00014371,2]
[407984614,1772969438518,-673.27356751,0.00014372,2]
[407984615,1772969438540,-500.0,0.00014372,2]
[407984616,1772969438553,-500.0,0.00014372,2]
[407984617,1772969438566,-500.0,0.00014372,2]
[407984618,1772969438579,-500.0,0.00014372,2]
[407984619,1772969438592,-500.0,0.00014372,2]
[407984620,1772969438603,-500.0,0.00014372,2]
[407984621,1772969438615,-500.0,0.00014372,2]
[407984622,1772969438626,-500.0,0.00014372,2]
[407984623,1772969438639,-500.0,0.00014372,2]
[407984624,1772969438651,-500.0,0.00014372,2]
[407984625,1772969438662,-500.0,0.00014372,2]
[407984626,1772969438675,-500.0,0.00014372,2]
[407984627,1772969438687,-261.45915393,0.00014372,2]
[407984628,1772969438698,-500.0,0.00014372,2]
[407984629,1772969438709,-500.0,0.00014372,2]
[407984630,1772969438721,-500.0,0.00014372,2]
[407984631,1772969438732,-500.0,0.00014372,2]
[407984632,1772969438746,-500.0,0.00014372,2]
[407984633,1772969438770,-500.0,0.00014372,2]
[407984634,1772969438789,-500.0,0.00014372,2]
[407984635,1772969438803,-500.0,0.00014372,2]
[407984636,1772969438815,-500.0,0.00014372,2]
[407984637,1772969438829,-500.0,0.00014372,2]
[407984638,1772969438841,-513.917388,0.00014372,2]
[407984639,1772969438853,-500.0,0.00014372,2]
[407984640,1772969438864,-500.0,0.00014372,2]
[407984641,1772969438875,-500.0,0.00014372,2]
[407984642,1772969438886,-500.0,0.00014372,2]
[407984643,1772969438898,-293.77158202,0.00014373,2]
[407984644,1772969438909,-500.0,0.00014373,2]
[407984645,1772969438920,-500.0,0.00014373,2]
[407984646,1772969438933,-500.0,0.00014373,2]
[407984647,1772969438944,-500.0,0.00014373,2]
[407984648,1772969438957,-500.0,0.00014373,2]
[407984649,1772969438968,-500.0,0.00014373,2]
[407984650,1772969438978,-500.0,0.00014373,2]
[407984651,1772969438990,-500.0,0.00014373,2]
[407984652,1772969439005,-500.0,0.00014373,2]
[407984653,1772969439016,-500.0,0.00014373,2]
[407984654,1772969439027,-500.0,0.00014373,2]
[407984655,1772969439039,-500.0,0.00014373,2]
[407984656,1772969439052,-500.0,0.00014373,2]
[407984657,1772969439066,-500.0,0.00014373,2]
[407984658,1772969439079,-1297528.0347,0.00014373,2]
[407984659,1772969439090,-613.48,0.00014378,2]
[407984660,1772969439103,-3221.95367079,0.00014391,2]
[407984661,1772969439116,-1680.0,0.00014438,2]
[407984662,1772969439128,-500.0,0.00014472,2]
[407984663,1772969439142,-255.0,0.0001459,2]
[407984664,1772969439156,-613.48,0.00014652,2]
[407984665,1772969439168,-1500.0,0.00014668,2]
[407984666,1772969439179,-500.0,0.00014672,2]
[407984667,1772969439191,-420.0,0.00014688,2]
[407984668,1772969439202,-501.73177384,0.00014726,3]
[407984669,1772969439212,-150.53,0.00014743,2]
[407984670,1772969439224,-2000.0,0.00014767,2]
[407984671,1772969439235,-1150.29,0.000148,2]
[407984672,1772969439247,-696.06,0.00014853,2]
[407984673,1772969439260,-979.27,0.0001488,2]
[407984674,1772969439271,-11613.25087256,0.00014901,2]
[407984675,1772969439283,-1000.0,0.00014921,2]
[407984676,1772969439294,-186.93321759,0.00014921,2]
[407984677,1772969439305,-640.08304959,0.00014921,2]
[407984678,1772969439318,-1000.0,0.00014921,2]
[407984679,1772969439328,-1000.0,0.00014921,2]
[407984680,1772969439340,-1000.0,0.00014921,2]
[407984681,1772969439351,-1000.0,0.00014921,2]
[407984682,1772969439362,-449.5306254,0.00014921,2]
[407984683,1772969439372,-500.86016718,0.00014921,2]
[407984684,1772969439383,-1000.0,0.00014921,2]
[407984685,1772969439393,-1000.0,0.00014921,2]
[407984686,1772969439404,-1000.0,0.00014921,2]
[407984687,1772969439416,-1000.0,0.00014921,2]
[407984688,1772969439427,-1000.0,0.00014921,2]
[407984689,1772969439438,-613.52,0.00014926,2]
[407984690,1772969439450,-500.0,0.00015,30]
[407984691,1772969439461,-500.0,0.00015,30]
[407984692,1772969439473,-500.0,0.00015,30]
[407984693,1772969439483,-500.0,0.00015,30]
[407984694,1772969439494,-505.76633109,0.00015,30]
[407984695,1772969439504,-500.0,0.00015,30]
[407984696,1772969439513,-737.76465158,0.00015,30]
[407984697,1772969439522,-500.0,0.00015,30]
[407984699,1772969439531,-500.0,0.00015,30]
[407984701,1772969439540,-500.0,0.00015,30]
[407984704,1772969439550,-500.0,0.00015,30]
[407984705,1772969439559,-636.54725451,0.00015,30]
[407984706,1772969439568,-500.0,0.00015,30]
[407984707,1772969439576,-500.0,0.00015,30]
[407984708,1772969439585,-150.53,0.00015114,2]
[407984709,1772969439594,-2000.0,0.00015216,2]
[407984710,1772969439828,-3221.95367079,0.00015309,2]
[407984711,1772969439840,-1515.0,0.00015332,2]
[407984712,1772969439849,-1515.0,0.00015332,2]
[407984713,1772969439858,-1515.0,0.00015332,2]
[407984714,1772969439867,-1515.0,0.00015332,2]
[407984715,1772969439876,-1515.0,0.00015332,2]
[407984716,1772969439885,-1515.0,0.00015332,2]
[407984717,1772969439894,-1515.0,0.00015332,2]
[407984718,1772969439903,-1515.0,0.00015332,2]
[407984719,1772969439912,-1515.0,0.00015332,2]
[407984720,1772969439922,-1515.0,0.00015332,2]
[407984721,1772969439931,-1515.0,0.00015332,2]
[407984722,1772969439940,-1515.0,0.00015332,2]
[407984723,1772969439949,-1515.0,0.00015332,2]
[407984724,1772969439958,-1515.0,0.00015332,2]
[407984725,1772969439967,-1515.0,0.00015332,2]
[407984726,1772969439977,-1515.0,0.00015332,2]
[407984727,1772969439987,-1515.0,0.00015332,2]
[407984728,1772969439997,-1515.0,0.00015332,2]
[407984729,1772969440006,-1515.0,0.00015332,2]
[407984730,1772969440019,-1515.0,0.00015332,2]
[407984731,1772969440027,-1515.0,0.00015332,2]
[407984732,1772969440036,-1538.91941432,0.00015332,2]
[407984733,1772969440046,-500.0,0.00015397,2]
[407984734,1772969440055,-1000.0,0.00015468,2]
[407984735,1772969440064,-1500.0,0.00015468,2]
[407984736,1772969440073,-1500.0,0.00015468,2]
[407984737,1772969440082,-1500.0,0.00015468,2]
[407984738,1772969440091,-1500.0,0.00015468,2]
[407984739,1772969440100,-1500.0,0.00015468,2]
[407984740,1772969440109,-1500.0,0.00015468,2]
[407984741,1772969440118,-500.0,0.00015468,2]
[407984742,1772969440127,-1000.0,0.00015468,2]
[407984744,1772969440135,-1000.0,0.00015468,2]
[407984745,1772969440144,-150.53,0.00015486,2]
[407984746,1772969440153,-1515.0,0.00015544,2]
[407984747,1772969440162,-174.36681548,0.00015609,2]
[407984748,1772969440171,-11613.25087256,0.00015615,2]
[407984749,1772969440180,-1000.0,0.00015764,2]
[407984750,1772969440188,-433.0,0.00015803,2]
[407984751,1772969440198,-150.53,0.00015857,2]
[407984752,1772969440207,-2351.0,0.00015882,2]
[407984753,1772969440217,-1719.58548492,0.00016016,2]
[407984754,1772969440226,-500.0,0.00016016,2]
[407984755,1772969440235,-500.0,0.00016016,2]
[407984756,1772969440244,-2000.0,0.00016016,2]
[407984757,1772969440255,-2000.0,0.00016016,2]
[407984758,1772969440265,-587.0,0.00016102,2]
[407984759,1772969440275,-3221.95367079,0.00016227,2]
[407984760,1772969440285,-150.53,0.00016229,2]
[407984761,1772969440295,-11613.25087256,0.00016329,2]
[407984762,1772969440304,-2000.0,0.00016408,2]
[407984763,1772969440313,-500.0,0.00016455,2]
[407984764,1772969440323,-979.27,0.00016533,2]
[407984765,1772969440332,-2500.0,0.00016564,2]
[407984766,1772969440341,-150.53,0.000166,2]
[407984767,1772969440350,-202.31344774,0.00016687,2]
[407984768,1772969440359,-250.0,0.00016739,2]
[407984769,1772969440369,-7606.01,0.00016759,2]
[407984770,1772969440378,-150.53,0.00016971,2]
[407984771,1772969440387,-502.0,0.00017,2]
[407984772,1772969440396,-11613.25087256,0.00017044,2]
[407984773,1772969440405,-736.0,0.00017109,2]
[407984774,1772969440415,-336.46733329,0.00017112,2]
[407984775,1772969440424,-3221.95367079,0.00017146,2]
[407984776,1772969440433,-150.53,0.00017343,2]
[407984777,1772969440442,-1236.1007734,0.0001738,2]
[407984778,1772969440452,-500.0,0.00017397,2]
[407984779,1772969440461,-3292.0,0.0001747,2]
[407984780,1772969440471,-206.01679557,0.00017536,2]
[407984781,1772969440480,-823.0,0.00017651,2]
[407984782,1772969440489,-206.01679557,0.0001771,2]
[407984783,1772969440498,-150.53,0.00017714,2]
[407984784,1772969440507,-2517.33,0.00017743,2]
[407984785,1772969440516,-4724.43876473,0.00017753,2]
[407984786,1772969440525,-174.36681548,0.00017755,2]
[407984787,1772969440534,-11613.25087256,0.00017758,2]
[407984788,1772969440543,-206.01679557,0.00017884,2]
[407984789,1772969440552,-458.88455514,0.00018006,2]
[407984790,1772969440561,-2000.0,0.00018049,2]
[407984791,1772969440570,-3221.95367079,0.00018064,2]
[407984792,1772969440579,-150.53,0.00018086,2]
[407984793,1772969440589,-979.27,0.00018186,2]
[407984794,1772969440598,-285.36,0.00018356,2]
[407984795,1772969440607,-150.53,0.00018457,2]
[407984796,1772969440616,-4724.43876473,0.00018467,2]
[407984797,1772969440625,-11613.25087256,0.00018472,2]
[407984798,1772969440634,-261.77,0.00018477,2]
[407984799,1772969440643,-1252.0,0.00018537,2]
[407984800,1772969440652,-150.53,0.00018829,2]
[407984801,1772969440661,-500.0,0.00018838,2]
[407984802,1772969440670,-151.0,0.00018838,2]
[407984803,1772969440679,-693.3919763,0.00018838,2]
[407984804,1772969440688,-174.61919141,0.00018838,2]
[407984805,1772969440697,-262.90206542,0.00018838,2]
[407984806,1772969440706,-200.0,0.00018838,2]
[407984807,1772969440716,-500.0,0.00018838,2]
[407984808,1772969440724,-500.0,0.00018838,2]
[407984809,1772969440733,-500.0,0.00018838,2]
[407984810,1772969440743,-500.0,0.00018838,2]
[407984811,1772969440753,-500.0,0.00018838,2]
[407984812,1772969440762,-500.0,0.00018838,2]
[407984813,1772969440771,-500.0,0.00018838,2]
[407984814,1772969440781,-500.0,0.00018838,2]
[407984815,1772969440790,-500.0,0.00018838,2]
[407984816,1772969440801,-500.0,0.00018838,2]
[407984817,1772969440812,-500.0,0.00018838,2]
[407984818,1772969440825,-172.82949155,0.00018892,2]
[407984819,1772969440834,-151.0,0.00018893,2]
[407984820,1772969440844,-719.04747942,0.00018893,2]
[407984821,1772969440853,-2000.0,0.000189,2]
[407984822,1772969440862,-151.0,0.00018948,2]
[407984823,1772969440871,-745.65223616,0.00018948,2]
[407984824,1772969440880,-3221.95367079,0.00018982,2]
[407984825,1772969440891,-2000.0,0.00019,2]
[407984826,1772969440902,-1541.03721467,0.00019,2]
[407984827,1772969440911,-16135.21698257,0.00019,2]
[407984828,1772969440922,-151.0,0.00019003,2]
[407984829,1772969440931,-773.2413689,0.00019003,2]
[407984830,1772969440941,-151.0,0.00019058,2]
[407984831,1772969440952,-801.85129955,0.00019058,2]
[407984832,1772969440961,-2000.0,0.000191,2]
[407984833,1772969440970,-151.0,0.00019113,2]
[407984834,1772969440979,-831.51979763,0.00019113,2]
[407984835,1772969440988,-151.0,0.00019168,2]
[407984836,1772969440996,-862.28603014,0.00019168,2]
[407984837,1772969441010,-4724.43876473,0.00019182,2]
[407984838,1772969441019,-11613.25087256,0.00019186,2]
[407984839,1772969441032,-2000.0,0.000192,2]
[407984840,1772969441041,-150.53,0.000192,2]
[407984841,1772969441054,-2000.0,0.000192,2]
[407984842,1772969441063,-4609.0,0.00019217,2]
[407984843,1772969441073,-151.0,0.00019223,2]
[407984844,1772969441084,-894.19061326,0.00019223,2]
[407984845,1772969441093,-151.0,0.00019278,2]
[407984846,1772969441103,-927.27566595,0.00019278,2]
[407984847,1772969441113,-2000.0,0.000193,2]
[407984848,1772969441123,-350.0,0.00019301,2]
[407984849,1772969441132,-151.0,0.00019333,2]
[407984850,1772969441141,-961.58486559,0.00019333,2]
[407984851,1772969441150,-1152.0,0.00019349,2]
[407984852,1772969441159,-350.0,0.00019357,2]
[407984853,1772969441168,-181.08010149,0.00019386,2]
[407984854,1772969441178,-272.62944185,0.00019386,2]
[407984855,1772969441189,-300.0,0.00019386,2]
[407984856,1772969441198,-151.0,0.00019388,2]
[407984857,1772969441207,-997.16350561,0.00019388,2]
[407984858,1772969441216,-2000.0,0.000194,2]
[407984859,1772969441226,-350.0,0.00019425,2]
[407984860,1772969441237,-151.0,0.00019443,2]
[407984861,1772969441246,-151.0,0.00019498,2]
[407984862,1772969441255,-2000.0,0.000195,2]
[407984863,1772969441264,-151.0,0.00019553,2]
[407984864,1772969441273,-150.53,0.00019571,2]
[407984865,1772969441281,-500.0,0.00019599,2]
[407984866,1772969441290,-2000.0,0.000196,2]
[407984867,1772969441299,-2000.0,0.000196,2]
[407984868,1772969441308,-2000.0,0.000196,2]
[407984869,1772969441317,-151.0,0.00019608,2]
[407984870,1772969441326,-151.0,0.00019663,2]
[407984871,1772969441335,-2000.0,0.00019689,2]
[407984872,1772969441343,-2000.0,0.000197,2]
[407984873,1772969441352,-2000.0,0.000197,2]
[407984874,1772969441362,-2000.0,0.000197,2]
[407984875,1772969441371,-151.0,0.00019718,2]
[407984876,1772969441380,-446.0,0.00019719,2]
[407984877,1772969441389,-491.0,0.00019739,2]
[407984878,1772969441398,-500.0,0.00019781,2]
[407984879,1772969441407,-350.0,0.00019792,2]
[407984880,1772969441416,-2000.0,0.000198,2]
[407984881,1772969441425,-2000.0,0.000198,2]
[407984882,1772969441434,-2000.0,0.000198,2]
[407984883,1772969441443,-979.27,0.0001984,2]
[407984884,1772969441453,-4724.43876473,0.00019897,2]
[407984885,1772969441463,-2000.0,0.000199,2]
[407984886,1772969441474,-2000.0,0.000199,2]
[407984887,1772969441483,-2000.0,0.000199,2]
[407984888,1772969441493,-174.36681548,0.000199,2]
[407984889,1772969441503,-267.6761185,0.000199,2]
[407984890,1772969441512,-150.0,0.000199,2]
[407984891,1772969441522,-150.0,0.000199,2]
[407984892,1772969441531,-202.31344774,0.000199,2]
[407984893,1772969441541,-3221.95367079,0.000199,2]
[407984894,1772969441552,-11613.25087256,0.000199,2]
[407984895,1772969441562,-150.24988052,0.000199,2]
[407984896,1772969441573,-6403.0,0.000199,2]
[407984897,1772969441582,-4917.0,0.000199,2]
[407984898,1772969441592,-187.78006525,0.00019934,2]
[407984899,1772969441603,-282.71673119,0.00019934,2]
[407984900,1772969441612,-150.53,0.00019943,2]
[407984901,1772969441622,-491.0,0.00019944,2]
[407984902,1772969441642,-163.72702598,0.00019973,2]
[407984903,1772969441651,-500.0,0.00019973,2]
[407984904,1772969441661,-500.0,0.00019973,2]
[407984905,1772969441670,-500.0,0.00019973,2]
[407984906,1772969441681,-431.68791693,0.0001999,2]
[407984907,1772969441691,-431.68791693,0.0001999,2]
[407984908,1772969441701,-500.0,0.00019996,2]
[407984909,1772969441710,-500.0,0.00019996,2]
[407984910,1772969441721,-500.0,0.00019996,2]
[407984911,1772969441731,-30000.0,0.00019997,2]
[407984912,1772969441740,-5553.24286376,0.00019997,3]
[407984913,1772969441751,-7085.9813113,0.00019997,2]
[407984914,1772969441762,-649246.4488007,0.00019997,2]
[407984915,1772969441772,-151.0,0.00019997,2]
[407984916,1772969441782,-300.0,0.00019999,2]
[407984917,1772969441792,-300.0,0.00019999,2]
[407984918,1772969441802,-300.0,0.00019999,2]
[407984919,1772969441812,-666.0,0.00019999,2]
[407984920,1772969441822,-164.431,0.00019999,2]
[407984921,1772969441832,-150.0,0.00019999,2]
[407984922,1772969441843,-215.40583698,0.00019999,2]
[407984923,1772969441854,-5582340.21122289,0.0002,2]
[407984924,1772969441873,-466.21354254,0.0002,2]
[407984925,1772969441884,-13846.37780608,0.0002,2]
[407984926,1772969441942,-2378913.80988687,0.0002,2]
[407984927,1772969441954,-333.81892786,0.0002,2]
[407984936,1772969442449,-272.874925,0.00019453,2]
[407984937,1772969442459,-605.31171255,0.0002,2]
[407984938,1772969442555,-7432.53723145,0.0002,2]
[407984939,1772969442714,-138166.18359393,0.0002,2]
[407984940,1772969442726,-1337.79988137,0.0002,2]
[407984941,1772969442739,-680.76275655,0.0002,2]
[407984942,1772969445592,-2587.82911441,0.0002,2]
[407984943,1772969445604,-359.69059197,0.0002,2]
[407984944,1772969445615,-1826.56410682,0.0002,2]
[407984945,1772969445625,-949.65,0.0002,2]
[407984946,1772969445643,-431.885,0.0002,2]
[407984947,1772969445661,-2853.9438,0.0002,2]
[407984948,1772969445672,-423.40184853,0.0002,2]
[407984949,1772969445682,-1123.71239335,0.0002,2]
[407984953,1772969787717,160.2,8.87e-05,2]
[407984954,1772969787905,160.2,9.978e-05,2]
[407984955,1772969788113,160.2,0.00011087,2]
[407984956,1772969844422,-160.2,0.00012196,2]
[407984957,1772969844457,-160.2,0.00013304,2]
[407984958,1772969844492,-1017.26167394,0.00013563,2]
[407984962,1772970492475,-262.0,0.00013567,2]
[407984963,1772970492502,-200.0,0.00013567,2]
[407984964,1772970492529,-1200.0,0.00013697,2]
[407984965,1772970492556,-300.0,0.00013697,2]
[407984966,1772970492583,-300.0,0.00013697,2]
[407984967,1772970492609,-176.01,0.00013697,2]
[407984968,1772970492926,-123.99,0.00013697,2]
[407984969,1772970492953,-500.0,0.00013698,2]
[407984970,1772970492979,-500.0,0.00013698,2]
[407984971,1772970493005,-500.0,0.00013698,2]
[407984972,1772970493032,-500.0,0.00013698,2]
[407984973,1772970493058,-252.03,0.00013698,2]
[407984974,1772970495353,-247.97,0.00013698,2]
[407984975,1772970495384,-500.0,0.00013698,2]
[407984976,1772970495412,-500.0,0.00013698,2]
[407984977,1772970495441,-500.0,0.00013698,2]
[407984978,1772970495476,-161.87,0.00014,2]
[407984979,1772970507494,-3468.41357125,0.000144,5]
[407984980,1772970507580,-2064.58642875,0.000144,5]
[407984981,1772970546548,1000.0,0.0002,120]
[407984982,1772970556404,1000.0,0.0002,120]
[407984983,1772970573274,1181.97,0.0002,120]
[407984986,1772970631533,-160.2,0.00014413,2]
[407984987,1772970631543,-161.87,0.00014709,2]
[407984988,1772970631552,-200.0,0.00014914,2]
[407984989,1772970631562,-150.0,0.00014923,2]
[407984990,1772970631573,-300.0,0.00014923,2]
[407984991,1772970631582,-300.0,0.00014923,2]
[407984992,1772970631591,-1200.0,0.00014923,2]
[407984993,1772970631600,-300.0,0.00014924,2]
[407984994,1772970631611,-9999.99,0.00014924,2]
[407984995,1772970631621,-150.99,0.00014924,2]
[407984996,1772970631630,-250.0,0.00015,2]
[407984997,1772970631639,-161.87,0.00015418,2]
[407984998,1772970631648,-160.2,0.00015522,2]
[407984999,1772970631657,-152.0,0.0001583,2]
[407985000,1772970631667,-250.0,0.00015854,2]
[407985001,1772970631676,-908.0,0.00015886,2]
[407985002,1772970631686,-255.0,0.00016042,2]
[407985003,1772970631695,-161.87,0.00016127,2]
[407985004,1772970631704,-1680.0,0.00016415,2]
[407985005,1772970631713,-162.97,0.000165,2]
[407985006,1772970631722,-160.2,0.0001663,2]
[407985007,1772970631732,-161.87,0.00016836,2]
[407985008,1772970631741,-300.0,0.00017,2]
[407985010,1772970631750,-502.0,0.00017,2]
[407985012,1772970631760,-502.0,0.00017068,2]
[407985013,1772970631770,-151.0,0.00017173,2]
[407985014,1772970631778,-151.0,0.00017173,2]
[407985015,1772970631788,-151.0,0.00017173,2]
[407985016,1772970631797,-151.0,0.00017173,2]
[407985017,1772970631806,-151.0,0.00017173,2]
[407985018,1772970631815,-151.0,0.00017173,2]
[407985019,1772970631825,-151.0,0.00017173,2]
[407985020,1772970631834,-151.0,0.00017173,2]
[407985021,1772970631843,-151.0,0.00017173,2]
[407985022,1772970631852,-151.0,0.00017173,2]
[407985023,1772970631862,-151.0,0.00017173,2]
[407985024,1772970631871,-433.0,0.00017251,2]
[407985025,1772970631880,-206.01679556,0.0001738,2]
[407985026,1772970631889,-3240.0,0.00017488,2]
[407985027,1772970631898,-167.63,0.00017527,2]
[407985028,1772970631907,-161.87,0.00017545,2]
[407985029,1772970631916,-150.0,0.00017625,2]
[407985030,1772970631925,-150.0,0.00017697,2]
[407985031,1772970631934,-160.2,0.00017739,2]
[407985032,1772970631943,-503.3,0.00017814,2]
[407985033,1772970631952,-166.66,0.00018025,2]
[407985034,1772970631962,-2351.0,0.00018057,2]
[407985035,1772970631971,-161.87,0.00018255,2]
[407985036,1772970631980,-181.916616,0.00018374,2]
[407985037,1772970631989,-166.66,0.00018405,2]
[407985038,1772970631998,-736.0,0.00018534,2]
[407985039,1772970632007,-2000.0,0.00018595,2]
[407985040,1772970632016,-150.0,0.00018735,2]
[407985041,1772970632025,-166.66,0.00018784,2]
[407985042,1772970632034,-500.0,0.00018838,2]
[407985043,1772970632043,-151.0,0.00018838,2]
[407985044,1772970632052,-693.3919763,0.00018838,2]
[407985045,1772970632061,-174.61919141,0.00018838,2]
[407985046,1772970632070,-262.90206542,0.00018838,2]
[407985047,1772970632078,-500.0,0.00018838,2]
[407985048,1772970632087,-500.0,0.00018838,2]
[407985049,1772970632096,-500.0,0.00018838,2]
[407985050,1772970632105,-500.0,0.00018838,2]
[407985051,1772970632114,-500.0,0.00018838,2]
[407985052,1772970632123,-500.0,0.00018838,2]
[407985053,1772970632131,-500.0,0.00018838,2]
[407985054,1772970632141,-500.0,0.00018838,2]
[407985055,1772970632150,-500.0,0.00018838,2]
[407985056,1772970632160,-500.0,0.00018838,2]
[407985057,1772970632169,-500.0,0.00018838,2]
[407985058,1772970632178,-151.0,0.00018893,2]
[407985059,1772970632186,-719.04747942,0.00018893,2]
[407985060,1772970632197,-172.82949155,0.00018926,2]
[407985061,1772970632206,-151.0,0.00018948,2]
[407985062,1772970632215,-745.65223616,0.00018948,2]
[407985063,1772970632225,-161.87,0.00018964,2]
[407985064,1772970632234,-167.63,0.00018988,2]
[407985065,1772970632243,-319.0,0.0001899,2]
[407985066,1772970632252,-152.13617837,0.00019003,2]
[407985067,1772970632262,-773.2413689,0.00019003,2]
[407985068,1772970632271,-433.59,0.00019006,2]
[407985069,1772970632280,-250.0,0.00019044,2]
[407985070,1772970632290,-801.85129955,0.00019058,2]
[407985071,1772970632299,-831.51979763,0.00019113,2]
[407985072,1772970632308,-319.0,0.00019119,2]
[407985073,1772970632317,-166.66,0.00019164,2]
[407985074,1772970632326,-862.28603014,0.00019168,2]
[407985075,1772970632335,-451.85,0.00019178,30]
[407985076,1772970632345,-2000.0,0.000192,2]
[407985077,1772970632354,-350.0,0.00019213,2]
[407985078,1772970632363,-894.19061326,0.00019223,2]
[407985079,1772970632372,-350.0,0.00019226,2]
[407985080,1772970632381,-496.98,0.00019226,2]
[407985081,1772970632391,-350.0,0.00019237,2]
[407985082,1772970632400,-927.27566595,0.00019278,2]
[407985083,1772970632409,-961.58486559,0.00019333,2]
[407985084,1772970632418,-2217.959,0.00019338,2]
[407985085,1772970632427,-268.538,0.00019338,2]
[407985086,1772970632436,-181.08010149,0.00019386,2]
[407985087,1772970632446,-328.22745908,0.00019386,2]
[407985088,1772970632455,-997.16350561,0.00019388,2]
[407985089,1772970632464,-164.02,0.000194,3]
[407985090,1772970632473,-319.0,0.00019438,2]
[407985091,1772970632482,-319.0,0.00019453,2]
[407985092,1772970632491,-319.0,0.00019479,2]
[407985093,1772970632501,-166.66,0.00019543,2]
[407985094,1772970632510,-638.22868293,0.0001959,2]
[407985095,1772970632520,-168.0,0.00019626,2]